fUST/lending_fUST_20240709
["ID","MTS","AMOUNT","RATE_DAILY","PERIOD"]
[331560374,1720503039462,-500.0,0.00027397,2]
[331560375,1720503039472,-500.0,0.00027397,2]
[331560376,1720503039483,-500.0,0.00027397,2]
[331560377,1720503039493,-500.0,0.00027397,2]
[331560378,1720503039504,-500.0,0.00027397,2]
[331560379,1720503039514,-500.0,0.00027397,2]
[331560380,1720503039525,-500.0,0.00027397,2]
[331560381,1720503039536,-500.0,0.00027397,2]
[331560382,1720503039546,-500.0,0.00027397,2]
[331560383,1720503039556,-500.0,0.00027397,2]
[331560384,1720503039567,-500.0,0.00027397,2]
[331560385,1720503039578,-500.0,0.00027397,2]
[331560386,1720503039588,-500.0,0.00027397,2]
[331560387,1720503039598,-500.0,0.00027397,2]
[331560388,1720503039608,-500.0,0.00027397,2]
[331560389,1720503039618,-500.0,0.00027397,2]
[331560390,1720503039628,-500.0,0.00027397,2]
[331560391,1720503039638,-500.0,0.00027397,2]
[331560392,1720503039649,-500.0,0.00027397,2]
[331560393,1720503039658,-500.0,0.00027397,2]
[331560394,1720503039669,-669.49758131,0.00027397,2]
[331560395,1720503039679,-669.49758131,0.00027397,2]
[331560396,1720503039689,-669.49758131,0.00027397,2]
[331560397,1720503039700,-669.49758131,0.00027397,2]
[331560398,1720503039710,-669.49758131,0.00027397,2]
[331560399,1720503039721,-669.49758131,0.00027397,2]
[331560400,1720503039731,-669.49758131,0.00027397,2]
[331560401,1720503039741,-669.49758131,0.00027397,2]
[331560402,1720503039751,-669.49758131,0.00027397,2]
[331560403,1720503039761,-669.49758131,0.00027397,2]
[331560404,1720503039772,-669.49758131,0.00027397,2]
[331560405,1720503039782,-669.49758131,0.00027397,2]
[331560406,1720503039792,-669.49758131,0.00027397,2]
[331560407,1720503039802,-669.49758131,0.00027397,2]
[331560408,1720503039812,-669.49758131,0.00027397,2]
[331560409,1720503039822,-669.49758131,0.00027397,2]
[331560410,1720503039832,-669.49758131,0.00027397,2]
[331560411,1720503039842,-669.49758131,0.00027397,2]
[331560412,1720503039852,-669.49758131,0.00027397,2]
[331560413,1720503039863,-669.49758131,0.00027397,2]
[331560414,1720503039874,-669.49758131,0.00027397,2]
[331560415,1720503039888,-669.49758131,0.00027397,2]
[331560416,1720503039899,-669.49758131,0.00027397,2]
[331560417,1720503039909,-669.49758131,0.00027397,2]
[331560418,1720503039919,-669.49758131,0.00027397,2]
[331560419,1720503039929,-669.49758131,0.00027397,2]
[331560420,1720503039940,-669.49758131,0.00027397,2]
[331560421,1720503039950,-669.49758131,0.00027397,2]
[331560422,1720503039962,-669.49758131,0.00027397,2]
[331560423,1720503039975,-669.49758131,0.00027397,2]
[331560424,1720503039986,-669.49758131,0.00027397,2]
[331560425,1720503039996,-669.49758131,0.00027397,2]
[331560426,1720503040007,-669.49758131,0.00027397,2]
[331560427,1720503040017,-669.49758131,0.00027397,2]
[331560428,1720503040028,-669.49758131,0.00027397,2]
[331560429,1720503040038,-663.9184348,0.00027397,2]
[331560430,1720503040049,-663.9184348,0.00027397,2]
[331560431,1720503040060,-663.9184348,0.00027397,2]
[331560432,1720503040070,-663.9184348,0.00027397,2]
[331560433,1720503040080,-663.9184348,0.00027397,2]
[331560434,1720503040091,-663.9184348,0.00027397,2]
[331560435,1720503040101,-663.9184348,0.00027397,2]
[331560436,1720503040112,-663.9184348,0.00027397,2]
[331560437,1720503040123,-663.9184348,0.00027397,2]
[331560438,1720503040134,-663.9184348,0.00027397,2]
[331560439,1720503040144,-663.9184348,0.00027397,2]
[331560440,1720503040155,-663.9184348,0.00027397,2]
[331560441,1720503040165,-663.9184348,0.00027397,2]
[331560443,1720503040174,-663.9184348,0.00027397,2]
[331560444,1720503040185,-663.9184348,0.00027397,2]
[331560445,1720503040195,-663.9184348,0.00027397,2]
[331560446,1720503040206,-663.9184348,0.00027397,2]
[331560447,1720503040216,-663.9184348,0.00027397,2]
[331560448,1720503040227,-663.9184348,0.00027397,2]
[331560449,1720503040237,-663.91843477,0.00027397,2]
[331560450,1720503040247,-256.6373675,0.00027397,2]
[331560451,1720503040258,-175.37288532,0.000274,2]
[331560452,1720503040267,-268.60335139,0.00028,2]
[331560453,1720503040278,-775.31299073,0.000289,2]
[331560454,1720503040288,-154.62117811,0.0003,4]
[331560455,1720503040298,-170.45207762,0.0003,4]
[331560456,1720503040309,-3088.66857407,0.00030303,4]
[331560457,1720503040319,-530.84519499,0.00031489,2]
[331560458,1720503040329,-750.0,0.00033295,2]
[331560459,1720503040338,-458.81231925,0.00034811,4]
[331560460,1720503040348,-3138.06906429,0.00034999,2]
[331560461,1720503040359,-1662.41784921,0.00035,4]
[331560462,1720503040370,-154.62117811,0.00035581,4]
[331560463,1720503040380,-242.71540794,0.00037,4]
[331560464,1720503040390,-530.84519499,0.00037384,2]
[331560465,1720503040399,-643.5565645,0.00037807,4]
[331560466,1720503040410,-150.0,0.00037895,2]
[331560467,1720503040421,-1405.0,0.00037895,2]
[331560468,1720503040431,-150.0,0.000379,2]
[331560469,1720503040441,-209.0,0.00038621,120]
[331560470,1720503040453,-1999.999999,0.00038621,120]
[331560471,1720503040463,-850.0,0.00038621,30]
[331560472,1720503040475,-212.62660586,0.00039177,4]
[331560473,1720503040485,-154.62117811,0.00039177,4]
[331560474,1720503040494,-161.88750048,0.00039393,4]
[331560475,1720503040504,-750.0,0.00039394,2]
[331560476,1720503040514,-3995.05042258,0.0003999,4]
[331560477,1720503040524,-435.0,0.00040229,2]
[331560478,1720503040534,-150.0,0.00040895,2]
[331560479,1720503040544,-1405.0,0.00040895,2]
[331560480,1720503040554,-9779.10702914,0.00041095,20]
[331560481,1720503040565,-238.64412433,0.00041314,4]
[331560482,1720503040575,-150.0,0.00042963,60]
[331560483,1720503040585,-153.20766236,0.00043065,60]
[331560484,1720503040595,-530.84519499,0.00043279,2]
[331560485,1720503040604,-500.0,0.00043835,30]
[331560487,1720503040614,-500.0,0.00043835,30]
[331560488,1720503040623,-500.0,0.00043835,30]
[331560489,1720503040632,-500.0,0.00043835,30]
[331560490,1720503040642,-500.0,0.00043835,30]
[331560491,1720503040652,-500.0,0.00043835,30]
[331560492,1720503040662,-500.0,0.00043835,30]
[331560493,1720503040672,-500.0,0.00043835,30]
[331560494,1720503040681,-500.0,0.00043835,30]
[331560495,1720503040691,-500.0,0.00043835,30]
[331560496,1720503040700,-500.0,0.00043835,30]
[331560497,1720503040710,-500.0,0.00043835,30]
[331560498,1720503040720,-500.0,0.00043835,30]
[331560499,1720503040730,-500.0,0.00043835,30]
[331560500,1720503040741,-185.7996131,0.00043835,30]
[331560501,1720503040751,-725.87,0.00043835,30]
[331560502,1720503040761,-524.95004031,0.00043835,30]
[331560503,1720503040771,-500.0,0.00043835,30]
[331560504,1720503040781,-500.0,0.00043835,30]
[331560505,1720503040792,-500.0,0.00043835,30]
[331560506,1720503040802,-1500.0,0.00043835,30]
[331560507,1720503040811,-500.0,0.00043835,30]
[331560508,1720503040821,-808.91,0.00043835,30]
[331560509,1720503040831,-500.0,0.00043835,30]
[331560510,1720503040842,-374.63121564,0.00043835,30]
[331560511,1720503041017,-125.36878436,0.00043835,30]
[331560512,1720503041027,-500.0,0.00043835,30]
[331560513,1720503041037,-183.56003112,0.00043835,30]
[331560514,1720503041114,-316.43996888,0.00043835,30]
[331560515,1720503041123,-770.96,0.00043835,30]
[331560516,1720503041133,-500.0,0.00043835,3]
[331560517,1720503041143,-500.0,0.00043835,30]
[331560518,1720503041153,-500.721308,0.00043835,30]
[331560519,1720503041163,-500.0,0.00043835,30]
[331560520,1720503041172,-500.0,0.00043835,30]
[331560521,1720503041182,-500.0,0.00043835,30]
[331560522,1720503041191,-500.0,0.00043835,30]
[331560523,1720503041201,-500.0,0.00043835,30]
[331560524,1720503041211,-535.41224695,0.00043835,30]
[331560525,1720503041222,-500.0,0.00043835,30]
[331560526,1720503041231,-500.0,0.00043835,30]
[331560527,1720503041241,-530.64079953,0.00043835,30]
[331560528,1720503041250,-435.0511535,0.00043835,30]
[331560529,1720503041260,-500.0,0.00043835,30]
[331560530,1720503041269,-500.0,0.00043835,30]
[331560531,1720503041279,-502.12423412,0.00043835,30]
[331560532,1720503041288,-500.0,0.00043835,30]
[331560533,1720503041297,-500.0,0.00043835,30]
[331560534,1720503041306,-500.0,0.00043835,30]
[331560535,1720503041314,-500.0,0.00043835,30]
[331560536,1720503041323,-522.66856255,0.00043835,30]
[331560537,1720503041333,-500.0,0.00043835,30]
[331560538,1720503041342,-547.35,0.00043835,30]
[331560539,1720503041351,-500.0,0.00043835,30]
[331560540,1720503041360,-540.37526299,0.00043835,30]
[331560541,1720503041369,-500.0,0.00043835,30]
[331560542,1720503041378,-500.0,0.00043835,30]
[331560543,1720503041387,-563.88,0.00043835,30]
[331560544,1720503041396,-534.12391078,0.00043835,30]
[331560545,1720503041406,-500.0,0.00043835,30]
[331560546,1720503041415,-500.0,0.00043835,30]
[331560547,1720503041424,-523.28976819,0.00043835,30]
[331560548,1720503041433,-500.0,0.00043835,30]
[331560549,1720503041443,-520.13168189,0.00043835,30]
[331560550,1720503041455,-514.88091674,0.00043835,30]
[331560551,1720503041465,-500.0,0.00043835,30]
[331560552,1720503041474,-500.0,0.00043835,30]
[331560553,1720503041483,-511.99665563,0.00043835,30]
[331560554,1720503041492,-500.0,0.00043835,30]
[331560555,1720503041502,-500.0,0.00043835,30]
[331560556,1720503041511,-500.0,0.00043835,30]
[331560557,1720503041520,-500.0,0.00043835,30]
[331560558,1720503041529,-500.0,0.00043835,30]
[331560559,1720503041539,-1186.71,0.00043835,30]
[331560560,1720503041547,-651.81,0.00043835,30]
[331560561,1720503041556,-812.8,0.00043835,30]
[331560562,1720503041566,-500.0,0.00043835,30]
[331560563,1720503041575,-500.0,0.00043835,30]
[331560564,1720503041584,-530.27490676,0.00043835,30]
[331560565,1720503041594,-510.8082756,0.00043835,30]
[331560566,1720503041603,-210.3284159,0.00043835,30]
[331560567,1720503041613,-500.0,0.00043835,7]
[331560568,1720503041622,-516.33963706,0.00043835,30]
[331560569,1720503041631,-500.0,0.00043835,30]
[331560570,1720503041641,-500.0,0.00043835,30]
[331560571,1720503041651,-500.0,0.00043835,30]
[331560572,1720503041661,-588.93,0.00043835,30]
[331560573,1720503041671,-500.0,0.00043835,30]
[331560574,1720503041680,-882.25,0.00043835,30]
[331560575,1720503041690,-500.0,0.00043835,30]
[331560576,1720503041700,-512.99101417,0.00043835,30]
[331560577,1720503041710,-500.0,0.00043835,30]
[331560578,1720503041722,-500.0,0.00043835,30]
[331560579,1720503041731,-500.001999,0.00043835,30]
[331560580,1720503041741,-500.0,0.00043835,30]
[331560581,1720503041750,-505.15170786,0.00043835,2]
[331560582,1720503041760,-500.0,0.00043835,30]
[331560583,1720503041769,-500.0,0.00043835,30]
[331560584,1720503041778,-500.0,0.00043835,30]
[331560585,1720503041788,-885.5,0.00043835,30]
[331560586,1720503041797,-500.0,0.00043835,30]
[331560587,1720503041807,-500.0,0.00043835,30]
[331560588,1720503041816,-585.35,0.00043835,30]
[331560589,1720503041826,-500.0,0.00043835,30]
[331560590,1720503041835,-517.55908918,0.00043835,30]
[331560591,1720503041845,-500.0,0.00043835,30]
[331560592,1720503041854,-500.0,0.00043835,30]
[331560593,1720503041863,-500.0,0.00043835,30]
[331560594,1720503041873,-500.0,0.00043835,30]
[331560595,1720503041885,-500.0,0.00043835,30]
[331560596,1720503041895,-500.0,0.00043835,30]
[331560597,1720503041904,-500.0,0.00043835,30]
[331560598,1720503041914,-500.0,0.00043835,30]
[331560599,1720503041924,-500.0,0.00043835,30]
[331560600,1720503041933,-500.0,0.00043835,30]
[331560601,1720503041942,-500.0,0.00043835,30]
[331560602,1720503041952,-500.0,0.00043835,30]
[331560603,1720503041962,-511.12533111,0.00043835,30]
[331560604,1720503041972,-500.0,0.00043835,30]
[331560605,1720503041982,-500.0,0.00043835,30]
[331560606,1720503041993,-500.0,0.00043835,30]
[331560607,1720503042003,-500.0,0.00043835,30]
[331560608,1720503042012,-500.0,0.00043835,30]
[331560609,1720503042022,-500.0,0.00043835,30]
[331560610,1720503042031,-500.0,0.00043835,30]
[331560611,1720503042041,-500.0,0.00043835,30]
[331560612,1720503042050,-500.0,0.00043835,30]
[331560613,1720503042060,-500.0,0.00043835,30]
[331560614,1720503042069,-500.0,0.00043835,30]
[331560615,1720503042079,-1922.17,0.00043835,30]
[331560616,1720503042088,-514.57809215,0.00043835,30]
[331560617,1720503042098,-500.0,0.00043835,30]
[331560618,1720503042107,-500.0,0.00043835,30]
[331560619,1720503042116,-530.25930053,0.00043835,30]
[331560620,1720503042126,-240.9378055,0.00043835,21]
[331560621,1720503042135,-428.44547169,0.00043835,30]
[331560622,1720503042145,-512.19586387,0.00043835,30]
[331560623,1720503042154,-582.46,0.00043835,30]
[331560624,1720503042163,-500.0,0.00043835,30]
[331560625,1720503042173,-683.48,0.00043835,30]
[331560626,1720503042182,-153.81778037,0.00043835,30]
[331560627,1720503042192,-500.0,0.00043835,30]
[331560628,1720503042201,-1045.54,0.00043835,30]
[331560629,1720503042210,-3825.75,0.00043835,30]
[331560630,1720503042219,-500.0,0.00043835,30]
[331560631,1720503042228,-500.0,0.00043835,30]
[331560632,1720503042238,-500.0,0.00043835,30]
[331560633,1720503042247,-893.31,0.00043835,30]
[331560634,1720503042256,-999.0,0.00043835,120]
[331560635,1720503042266,-5846.24,0.00043835,7]
[331560636,1720503042275,-500.0,0.00043835,30]
[331560637,1720503042346,-500.0,0.00043835,30]
[331560638,1720503042355,-500.0,0.00043835,30]
[331560639,1720503042365,-316.15819429,0.00043835,30]
[331560640,1720503042374,-500.0,0.00043835,30]
[331560641,1720503042383,-506.84,0.00043835,30]
[331560642,1720503042391,-500.0,0.00043835,30]
[331560643,1720503042400,-500.0,0.00043835,30]
[331560644,1720503042409,-500.0,0.00043835,30]
[331560645,1720503042418,-500.0,0.00043835,30]
[331560646,1720503042427,-168.75400819,0.00043835,30]
[331560647,1720503042437,-787.83,0.00043835,30]
[331560648,1720503042446,-500.0,0.00043835,30]
[331560649,1720503042457,-157.07037494,0.00043835,30]
[331560650,1720503042466,-861.07,0.00043835,30]
[331560651,1720503042479,-500.0,0.00043835,10]
[331560652,1720503042488,-500.0,0.00043835,30]
[331560654,1720503042497,-3069.41,0.00043835,30]
[331560655,1720503042506,-3069.41,0.00043835,30]
[331560656,1720503042515,-3069.41,0.00043835,30]
[331560657,1720503042526,-3069.41,0.00043835,30]
[331560658,1720503042538,-3069.41,0.00043835,30]
[331560659,1720503042547,-3069.41,0.00043835,30]
[331560660,1720503042556,-3069.41,0.00043835,30]
[331560661,1720503042566,-3069.41,0.00043835,30]
[331560662,1720503042575,-3069.41,0.00043835,30]
[331560663,1720503042584,-3069.41,0.00043835,30]
[331560664,1720503042593,-3069.41,0.00043835,30]
[331560665,1720503042602,-3069.41,0.00043835,30]
[331560666,1720503042611,-3069.41,0.00043835,30]
[331560667,1720503042620,-3069.41,0.00043835,30]
[331560668,1720503042629,-3069.41,0.00043835,30]
[331560669,1720503042638,-3069.41,0.00043835,30]
[331560670,1720503042647,-3069.41,0.00043835,30]
[331560671,1720503042655,-3069.41,0.00043835,30]
[331560672,1720503042664,-3069.41,0.00043835,30]
[331560673,1720503042673,-3069.41,0.00043835,30]
[331560674,1720503042683,-3069.41,0.00043835,30]
[331560675,1720503042692,-3069.41,0.00043835,30]
[331560676,1720503042701,-3069.41,0.00043835,30]
[331560677,1720503042710,-3069.41869698,0.00043835,30]
[331560678,1720503042719,-4865.83,0.00043835,30]
[331560679,1720503042728,-521.28,0.00043835,30]
[331560680,1720503042737,-1009.1,0.00043835,30]
[331560681,1720503042746,-500.0,0.00043835,30]
[331560682,1720503042754,-751.55,0.00043835,30]
[331560683,1720503042763,-439.73264637,0.00043835,30]
[331560684,1720503042772,-832.89,0.00043835,30]
[331560686,1720503042781,-1309.28,0.00043835,30]
[331560688,1720503042790,-520.89545066,0.00043835,30]
[331560689,1720503042799,-500.0,0.00043835,30]
[331560691,1720503042807,-639.26,0.00043835,30]
[331560693,1720503042816,-511.45215564,0.00043835,30]
[331560694,1720503042825,-431.32721552,0.00043835,30]
[331560695,1720503042834,-519.5753945,0.00043835,30]
[331560697,1720503042842,-500.0,0.00043835,30]
[331560699,1720503042851,-402.52965548,0.00043835,30]
[331560701,1720503042860,-500.0,0.00043835,2]
[331560703,1720503042869,-637.22,0.00043835,30]
[331560706,1720503042880,-12198.44,0.00043835,30]
[331560708,1720503042888,-500.0,0.00043835,30]
[331560711,1720503042897,-500.0,0.00043835,2]
[331560713,1720503042906,-500.0,0.00043835,30]
[331560715,1720503042915,-961.12,0.00043835,30]
[331560717,1720503042924,-500.0,0.00043835,2]
[331560719,1720503042933,-1744.11,0.00043835,30]
[331560720,1720503042941,-1094.16,0.00043835,30]
[331560721,1720503042953,-778.63,0.00043835,30]
[331560722,1720503042963,-610.08858066,0.00043835,30]
[331560723,1720503042971,-500.0,0.00043835,30]
[331560724,1720503042980,-500.0,0.00043835,30]
[331560725,1720503042989,-500.0,0.00043835,30]
[331560727,1720503042998,-409.63895255,0.00043835,30]
[331560729,1720503043007,-500.0,0.00043835,30]
[331560731,1720503043016,-500.0,0.00043835,30]
[331560733,1720503043025,-1242.48,0.00043835,30]
[331560734,1720503043034,-1242.48,0.00043835,30]
[331560736,1720503043043,-1242.48,0.00043835,30]
[331560738,1720503043052,-1242.48,0.00043835,30]
[331560740,1720503043062,-1242.48,0.00043835,30]
[331560742,1720503043072,-1242.48,0.00043835,30]
[331560744,1720503043081,-1242.48,0.00043835,30]
[331560745,1720503043090,-500.0,0.00043835,30]
[331560746,1720503043099,-1242.48,0.00043835,30]
[331560747,1720503043108,-1242.48,0.00043835,30]
[331560748,1720503043117,-1242.48,0.00043835,30]
[331560749,1720503043126,-1242.48,0.00043835,30]
[331560751,1720503043135,-1242.48,0.00043835,30]
[331560753,1720503043144,-1242.48,0.00043835,30]
[331560755,1720503043154,-1242.48,0.00043835,30]
[331560757,1720503043163,-1242.48,0.00043835,30]
[331560759,1720503043172,-1242.48,0.00043835,30]
[331560761,1720503043181,-1242.48,0.00043835,30]
[331560763,1720503043190,-1242.48,0.00043835,30]
[331560765,1720503043199,-1242.48,0.00043835,30]
[331560767,1720503043208,-1555.1,0.00043835,30]
[331560769,1720503043216,-2707.16,0.00043835,30]
[331560771,1720503043226,-500.0,0.00043835,30]
[331560773,1720503043235,-531.85527101,0.00043835,30]
[331560775,1720503043243,-500.0,0.00043835,2]
[331560777,1720503043252,-1030.25,0.00043835,30]
[331560779,1720503043261,-6678.76,0.00043835,2]
[331560780,1720503043270,-500.0,0.00043835,30]
[331560781,1720503043279,-514.62823001,0.00043835,30]
[331560782,1720503043288,-521.41046739,0.00043835,30]
[331560783,1720503043297,-150.0,0.00043895,2]
[331560784,1720503043305,-1405.0,0.00043895,2]
[331560785,1720503043315,-1242.48,0.00044108,30]
[331560786,1720503043323,-1242.48,0.00044108,30]
[331560787,1720503043332,-1242.48,0.00044108,30]
[331560788,1720503043341,-1242.48,0.00044108,30]
[331560789,1720503043350,-1242.56,0.00044108,30]
[331560790,1720503043359,-500.0,0.00044109,30]
[331560791,1720503043367,-500.0,0.00044109,30]
[331560792,1720503043376,-500.0,0.00044109,30]
[331560793,1720503043385,-444.50093067,0.00044109,30]
[331560794,1720503043395,-500.0,0.00044109,30]
[331560795,1720503043404,-725.87,0.00044109,30]
[331560796,1720503043413,-500.0,0.00044109,30]
[331560797,1720503043422,-500.0,0.00044109,30]
[331560798,1720503043431,-808.91,0.00044109,30]
[331560799,1720503043439,-500.0,0.00044109,30]
[331560800,1720503043449,-770.96,0.00044109,30]
[331560801,1720503043458,-465.59049608,0.00044109,3]
[331560802,1720503043468,-500.0,0.00044109,30]
[331560804,1720503043484,-500.0,0.00044109,30]
[331560806,1720503043493,-411.62406055,0.00044109,30]
[331560808,1720503043503,-500.0,0.00044109,30]
[331560809,1720503043512,-500.0,0.00044109,30]
[331560811,1720503043522,-500.0,0.00044109,30]
[331560812,1720503043531,-500.0,0.00044109,30]
[331560813,1720503043540,-500.0,0.00044109,30]
[331560814,1720503043550,-296.20300114,0.00044109,30]
[331560815,1720503043559,-500.0,0.00044109,30]
[331560816,1720503043568,-547.35,0.00044109,30]
[331560817,1720503043578,-500.0,0.00044109,30]
[331560818,1720503043587,-563.88,0.00044109,30]
[331560819,1720503043653,-500.0,0.00044109,30]
[331560820,1720503043663,-500.0,0.00044109,30]
[331560821,1720503043672,-500.0,0.00044109,30]
[331560822,1720503043682,-500.0,0.00044109,30]
[331560823,1720503043691,-500.0,0.00044109,30]
[331560824,1720503043702,-500.0,0.00044109,30]
[331560825,1720503043711,-651.81,0.00044109,30]
[331560826,1720503043721,-1186.71,0.00044109,30]
[331560827,1720503043730,-812.8,0.00044109,30]
[331560828,1720503043740,-298.0019589,0.00044109,7]
[331560829,1720503043749,-500.0,0.00044109,30]
[331560830,1720503043759,-500.0,0.00044109,30]
[331560831,1720503043768,-500.0,0.00044109,30]
[331560832,1720503043777,-588.93,0.00044109,30]
[331560833,1720503043786,-882.25,0.00044109,30]
[331560834,1720503043796,-500.0,0.00044109,30]
[331560835,1720503043805,-500.0,0.00044109,30]
[331560836,1720503043816,-503.38814713,0.00044109,30]
[331560837,1720503043825,-500.0,0.00044109,30]
[331560838,1720503043835,-500.0,0.00044109,30]
[331560839,1720503043844,-500.0,0.00044109,30]
[331560840,1720503043854,-885.5,0.00044109,30]
[331560841,1720503043863,-500.0,0.00044109,30]
[331560842,1720503043872,-500.0,0.00044109,30]
[331560843,1720503043885,-585.35,0.00044109,30]
[331560844,1720503043894,-500.0,0.00044109,30]
[331560845,1720503043904,-500.0,0.00044109,30]
[331560846,1720503043914,-268.04709015,0.00044109,30]
[331560847,1720503043993,-2636.03422144,0.00043825,3]
[331560867,1720503293245,155.41698597,0.00014999,2]
[331560868,1720503324218,158.25494522,0.00014999,2]
[331560869,1720503324521,154.62117811,0.00014999,2]
[331560870,1720503341511,154.62117811,0.00014999,2]
[331560872,1720503494222,158.25494522,0.00014999,2]
[331560873,1720503500528,154.62117811,0.00014999,2]
[331560874,1720503537579,949.73040029,0.00015,2]
[331560875,1720503542922,766.51384343,0.00015,2]
[331560876,1720503556585,3138.06906429,0.00014999,2]
[331560877,1720503601686,154.62117811,0.00014999,2]
[331560878,1720503638537,154.62117811,0.00014999,2]
[331560879,1720503640459,2136.49086891,0.00014999,2]
[331560880,1720503671197,6094.81493025,0.00014998,2]
[331560881,1720503671732,158.25494522,0.00014999,2]
[331560882,1720503701724,158.25494522,0.00014999,2]
[331560883,1720503710101,3088.66857407,0.00014999,2]
[331560884,1720503714422,263.35120533,0.00015,2]
[331560885,1720503716559,325.21770967,0.00015,2]
[331560887,1720503747672,251.65356935,0.00014999,2]
[331560888,1720503790279,160.3712617,0.00014999,2]
[331560889,1720503800548,167.76946042,0.00014999,2]
[331560890,1720503803799,6993.35591571,0.00014999,2]
[331560891,1720503874735,158.25494522,0.00014999,2]
[331560892,1720503934647,1434.5963251,0.00014999,2]
[331560893,1720503939971,1579.42092311,0.00015,2]
[331560894,1720504002016,1159.23553938,0.00014999,2]
[331560895,1720504029823,241.51918632,0.00014999,2]
[331560896,1720504057446,827.35902986,0.00015,2]
[331560897,1720504061065,1048.31631935,0.00015,2]
[331560899,1720504111191,2800.00082769,0.00014999,2]
[331560901,1720504165512,1157.3780498,0.00014999,2]
[331560902,1720504176338,1109.65031317,0.00015,2]
[331560921,1720504232541,-491.31326196,0.00015995,2]
[331560922,1720504232552,-300.0,0.00016254,2]
[331560923,1720504232563,-8002.46708259,0.00016255,2]
[331561007,1720504238747,-10585.32971325,0.00016255,2]
[331561009,1720504238756,-166.666666,0.00016438,2]
[331561010,1720504238765,-276.64310743,0.00016812,2]
[331561012,1720504238774,-166.666666,0.00016823,2]
[331561014,1720504238783,-166.666666,0.00017208,2]
[331561016,1720504238793,-183.67330916,0.00017232,2]
[331561018,1720504238802,-165.72688332,0.00017232,2]
[331561020,1720504238811,-24900.0,0.00017233,2]
[331561022,1720504238820,-166.666666,0.00017592,2]
[331561024,1720504238830,-166.666666,0.00017977,2]
[331561026,1720504238839,-938.05992733,0.00018182,2]
[331561028,1720504238849,-166.666666,0.00018362,2]
[331561030,1720504238858,-191.12784748,0.00018798,2]
[331561032,1720504238870,-154.62117811,0.00018798,2]
[331561033,1720504238879,-2605.06384825,0.000189,2]
[331561034,1720504238889,-813.14107465,0.00019039,3]
[331561035,1720504238899,-250.0,0.00019041,2]
[331561036,1720504238908,-371.24540863,0.00019078,2]
[331561037,1720504238917,-162.603903,0.00019178,2]
[331561038,1720504238927,-162.707693,0.00019178,2]
[331561039,1720504238936,-371.24540863,0.00019489,2]
[331561040,1720504238945,-845.71396129,0.00019789,2]
[331561041,1720504238955,-30523.8868916,0.0001979,2]
[331561042,1720504238964,-52136.2205257,0.000198,2]
[331561043,1720504238981,-371.24540863,0.000199,2]
[331561044,1720504238997,-158.03470722,0.00019989,2]
[331561045,1720504239006,-500.0,0.00019989,2]
[331561046,1720504239016,-189.08633169,0.00019989,2]
[331561047,1720504239137,-205.09250824,0.00019989,2]
[331561048,1720504239150,-500.0,0.00019989,2]
[331561049,1720504239160,-500.0,0.00019989,2]
[331561050,1720504239170,-500.0,0.00019989,2]
[331561051,1720504239180,-500.0,0.00019989,2]
[331561052,1720504239190,-387.23286462,0.00019989,2]
[331561053,1720504239200,-500.0,0.00019989,2]
[331561054,1720504239211,-91571.6606748,0.0001999,2]
[331561055,1720504239220,-21004.02252795,0.0002,2]
[331561056,1720504239230,-225.71833691,0.0002,2]
[331561057,1720504239240,-428.24738691,0.0002,2]